bitfinex/quotes_ETHUSD_20260225
["timestamp","ask_amount","ask_price","bid_price","bid_amount"]
[1772046572269,2.423,2072.0,2071.6,0.001]
[1772046574610,2.423,2072.0,2071.6,1.20779667]
[1772046574807,2.423,2072.0,2071.6,4.29948802]
[1772046575091,3.62956931,2072.0,2071.6,3.09269135]
[1772046575297,2.423,2072.0,2071.6,3.09189135]
[1772046575592,3.62956637,2072.0,2071.6,3.09189135]
[1772046575808,3.62956637,2072.0,2071.6,0.0002]
[1772046577593,3.62956637,2072.0,2071.8,0.001]
[1772046577769,3.62956637,2072.0,2071.8,0.00013082]
[1772046578091,3.6295681,2072.0,2071.8,0.00013082]
[1772046579192,3.6295681,2072.0,2071.6,0.0002]
[1772046582407,0.002,2072.2,2071.8,3.09169135]
[1772046582605,1.20845425,2072.2,2071.8,3.09169135]
[1772046583010,1.20845425,2072.2,2071.6,3.09189135]
[1772046583011,2.431,2072.1,2071.6,3.09189135]
[1772046583678,2.431,2072.1,2071.6,4.29863134]
[1772046583880,3.63752094,2072.1,2071.6,4.29863134]
[1772046584398,6.48860538,2072.1,2071.6,0.0002]
[1772046584701,2.85108444,2072.0,2071.6,0.0002]
[1772046584903,2.85108444,2072.0,2071.2,3.09169135]
[1772046585498,2.85108444,2072.0,2070.7,4.82925836]
[1772046585499,2.85108444,2071.5,2070.0,5.42153922]
[1772046585689,2.85108444,2071.3,2070.3,3.09169135]
[1772046587806,1.20702974,2071.2,2070.4,4.29918748]
[1772046588108,1.20702974,2071.2,2070.5,3.09169135]
[1772046588302,4.05811418,2071.2,2070.5,3.09169135]
[1772046588505,2.85108444,2071.1,2070.4,1.20749613]
[1772046588693,2.429,2071.0,2070.4,1.20749613]
[1772046589311,2.85108444,2070.9,2069.6,4.83184049]
[1772046589515,2.85108444,2070.7,2069.7,3.09169135]
[1772046589717,2.85108444,2070.4,2069.7,3.09169135]
[1772046590014,1.20761279,2070.2,2069.7,3.09169135]
[1772046590614,3.63558402,2070.3,2069.7,3.09169135]
[1772046591285,3.63558402,2070.3,2070.0,0.001]
[1772046591514,1.20758402,2070.3,2070.0,0.001]
[1772046591881,2.85108444,2070.5,2070.0,0.001]
[1772046592391,2.85108444,2070.5,2069.6,3.09169135]
[1772046593387,2.85108444,2070.5,2069.7,3.09169135]
[1772046593887,1.20749613,2070.4,2069.7,4.29958034]
[1772046594107,1.20749613,2070.4,2069.7,3.09169135]
[1772046595637,4.16156781,2070.4,2069.7,3.09169135]
[1772046596137,2.95407168,2070.0,2068.6,2.09309183]
[1772046596434,3.537344,2070.4,2068.6,2.09309183]
[1772046596435,2.95407168,2069.6,2068.7,2.09309183]
[1772046596619,2.428,2069.5,2068.7,2.09309183]
[1772046597226,2.95407168,2069.4,2068.7,2.09309183]
[1772046598502,1.20807963,2069.4,2068.8,1.20843]
[1772046599102,1.20807963,2069.4,2068.7,3.30153638]
[1772046599321,1.20807963,2069.4,2067.5,0.18685624]
[1772046599322,2.95407168,2069.1,2067.7,2.96197766]
[1772046599528,0.0666131,2068.7,2067.7,2.49019405]
[1772046599731,3.02068478,2068.7,2067.7,1.07481391]
[1772046600319,3.02068478,2068.7,2067.5,4.83663537]
[1772046600523,3.02068478,2068.7,2067.5,1.20918984]
[1772046601029,0.0666131,2068.7,2068.2,1.90833976]
[1772046601200,4.22917956,2068.7,2067.8,1.90833976]
[1772046602146,4.22917956,2068.7,2068.1,5.18638203]
[1772046602147,0.0666131,2068.7,2068.1,5.18638203]
[1772046602443,1.20823853,2069.2,2068.2,1.91073346]
[1772046602648,3.63323853,2069.2,2068.3,1.91073346]
[1772046602826,4.16223478,2069.3,2068.4,1.2086637]
[1772046603030,4.16220971,2069.3,2068.4,3.11939716]
[1772046604523,4.16220971,2069.3,2068.4,1.91073346]
[1772046605140,4.16220971,2069.3,2068.5,1.20860526]
[1772046605426,4.16140971,2069.3,2068.5,1.20860526]
[1772046607329,4.8306845,2070.2,2069.2,3.27564857]
[1772046607529,4.8306845,2070.2,2069.0,0.71649074]
[1772046607530,3.01632566,2070.0,2069.0,0.71649074]
[1772046609136,1.20778781,2069.9,2069.1,4.48390336]
[1772046609551,1.20778781,2069.9,2069.1,5.24364003]
[1772046609768,1.20778781,2069.9,2069.1,1.96799146]
[1772046611249,4.22411347,2069.9,2069.1,0.75973667]
[1772046611547,4.22411347,2069.9,2069.1,1.96798452]
[1772046611948,4.22411347,2069.9,2069.1,0.75973667]
[1772046612270,3.01632566,2069.7,2068.5,1.97627632]
[1772046613470,3.01632566,2069.5,2068.6,0.77023443]
[1772046614473,1.20796289,2069.6,2068.8,3.27564857]
[1772046615571,7.25275861,2070.1,2069.0,0.77505601]
[1772046615572,4.83124834,2069.9,2069.0,0.77505601]
[1772046615755,1.20778781,2069.9,2069.0,0.77505601]
[1772046615952,4.22409155,2070.0,2069.1,4.05070458]
[1772046616263,4.22409155,2070.0,2069.1,0.77505601]
[1772046617976,4.22409155,2070.0,2069.2,1.2081964]
[1772046618174,4.22409155,2070.0,2069.1,0.77505601]
[1772046618175,3.01632566,2069.9,2069.1,0.77505601]
[1772046618488,0.002,2069.8,2069.0,1.20826909]
[1772046618780,3.01832566,2069.8,2069.0,1.20826909]
[1772046619087,0.002,2069.8,2069.1,0.78390776]
[1772046620082,0.002,2069.8,2069.2,1.2081964]
[1772046621390,0.002,2069.8,2069.1,1.99211439]
[1772046621603,3.01832566,2069.8,2069.0,1.20827614]
[1772046622288,4.22423018,2069.7,2068.9,4.83337208]
[1772046622488,3.01632566,2069.6,2068.8,0.78798369]
[1772046622794,0.02052922,2068.9,2068.4,4.91642262]
[1772046623995,3.01632566,2069.3,2068.5,3.27564857]
[1772046624295,1.2081964,2069.2,2068.6,1.20854684]
[1772046625089,4.22452206,2069.2,2068.6,1.20854684]
[1772046625616,4.22452206,2069.2,2068.5,1.20855911]
[1772046627337,4.22452206,2069.2,2068.3,6.90681667]
[1772046627486,3.10554329,2069.1,2068.3,3.28066448]
[1772046627688,3.10554329,2069.1,2068.3,2.072]
[1772046627905,3.10554329,2069.1,2068.0,0.001]
[1772046628292,3.10554329,2068.9,2068.0,1.20989101]
[1772046628610,3.10554329,2068.9,2068.2,3.27564857]
[1772046628784,3.10554329,2068.9,2068.0,0.001]
[1772046630288,1.20843,2068.8,2068.0,0.001]
[1772046630508,3.22497723,2068.7,2068.0,0.001]
[1772046632424,3.22497723,2068.5,2068.0,0.001]
[1772046632799,3.22497723,2068.5,2067.2,4.83700625]
[1772046632800,3.22497723,2068.3,2067.1,0.81809656]
[1772046632996,3.22497723,2068.3,2067.2,4.09374513]
[1772046633299,3.22497723,2068.3,2067.2,3.27564857]
[1772046633929,3.22497723,2068.3,2067.5,3.27564857]
[1772046634128,3.22497723,2068.3,2068.2,0.001]
[1772046634626,1.20869589,2068.4,2068.2,0.001]
[1772046635327,1.20869589,2068.4,2067.6,1.20913136]
[1772046636211,3.27564857,2068.1,2066.3,0.8228005]
[1772046636417,3.22497723,2067.6,2066.6,3.27564857]
[1772046636729,1.20905594,2067.8,2066.9,3.27564857]
[1772046637040,1.20905594,2067.8,2066.9,5.34264857]
[1772046637413,3.22497723,2067.7,2066.9,5.34264857]
[1772046637624,3.22497723,2067.7,2066.9,2.067]
[1772046638335,3.22497723,2067.7,2066.4,1.20983352]
[1772046638533,3.22497723,2067.5,2066.0,3.27564857]
[1772046638717,3.22497723,2067.5,2065.8,6.55129714]
[1772046638718,3.22497723,2067.5,2065.8,0.08192]
[1772046638915,3.22497723,2067.5,2066.2,0.08192]
[1772046639245,3.22497723,2067.5,2066.7,3.27564857]
[1772046639620,3.22497723,2067.5,2066.6,2.066]
[1772046640438,4.43422556,2067.4,2066.6,2.066]
[1772046640631,3.22497723,2067.3,2066.6,2.066]
[1772046640852,3.22497723,2067.3,2066.6,3.27570736]
[1772046641354,3.22497723,2067.3,2066.6,3.2757134]
[1772046642235,3.22497723,2067.3,2066.6,2.066]
[1772046642437,1.20936532,2067.2,2066.6,2.066]
[1772046642633,4.43434255,2067.2,2066.6,3.25908381]
[1772046642843,3.22497723,2067.5,2066.6,3.25908381]
[1772046644765,3.22497723,2067.3,2066.6,2.04937134]
[1772046644971,8.06169231,2067.6,2066.7,3.27564857]
[1772046645151,8.06169231,2067.6,2066.6,4.09266631]
[1772046645347,4.83671508,2067.6,2066.6,4.09266631]
[1772046645672,3.22497723,2067.5,2066.6,4.09266631]
[1772046645846,1.20913136,2067.6,2066.7,0.83429236]
[1772046646045,3.22497723,2067.5,2066.7,0.83429236]
[1772046646266,3.22497723,2067.5,2066.6,3.25908115]
[1772046646445,3.22497723,2067.5,2066.6,3.25908119]
[1772046646657,4.43422556,2067.4,2066.6,3.25908119]
[1772046647044,3.22497723,2067.3,2066.6,2.04937134]
[1772046647568,3.22497723,2067.3,2066.6,3.25908272]
[1772046647754,3.22497723,2067.3,2066.6,3.25908534]
[1772046648069,3.22497723,2067.3,2066.6,2.04937134]
[1772046648652,1.20936532,2067.2,2066.6,2.04937134]
[1772046648848,3.22497723,2067.1,2066.6,2.04937134]
[1772046649773,3.22497723,2067.1,2066.8,0.001]
[1772046650067,4.43434255,2067.2,2066.8,0.001]
[1772046650255,3.22497723,2067.1,2066.8,0.001]
[1772046650651,1.20948234,2067.0,2066.6,1.90071336]
[1772046651059,4.43444699,2067.1,2066.6,1.90071336]
[1772046651566,3.22497723,2067.1,2066.6,3.11042832]
[1772046651975,4.43441408,2067.1,2066.6,1.90071336]
[1772046653690,4.43440277,2067.1,2066.6,1.90071336]
[1772046653988,3.22497723,2067.0,2066.6,1.90071336]
[1772046654190,3.22497723,2067.0,2066.5,0.001]
[1772046654486,1.20942554,2067.1,2066.5,1.21077104]
[1772046654790,4.83747693,2067.2,2066.5,1.21077011]
[1772046654955,8.06245416,2067.2,2066.5,1.21077011]
[1772046655264,4.43434255,2067.2,2066.5,1.21077011]
[1772046655462,3.22497723,2067.2,2066.6,3.27564857]
[1772046655764,4.45752848,2067.5,2066.9,3.27564857]
[1772046655960,3.2483284,2067.5,2066.9,3.27564857]
[1772046656147,1.20919098,2067.5,2066.9,3.27564857]
[1772046656352,3.2483284,2067.4,2066.9,3.27564857]
[1772046656768,3.2483284,2067.4,2066.7,3.27564857]
[1772046656973,3.2483284,2067.4,2066.8,1.20959938]
[1772046657180,3.2483284,2067.3,2066.6,2.06]
[1772046657477,3.2483284,2067.3,2066.6,3.26970853]
[1772046658064,3.2483284,2067.3,2066.6,3.26970409]
[1772046658377,3.2483284,2067.3,2066.6,3.26969893]
[1772046658583,3.2483284,2067.3,2066.6,3.26969738]
[1772046658888,1.20936532,2067.2,2066.6,2.06]
[1772046659181,3.2483284,2067.1,2066.6,2.06]
[1772046659381,3.2483284,2067.1,2066.6,3.26971065]
[1772046659577,3.2483284,2067.1,2066.6,2.06]
[1772046660282,3.2483284,2067.1,2066.6,3.26970938]
[1772046660880,3.2483284,2067.3,2066.5,0.001]
[1772046661380,3.2483284,2067.3,2066.5,1.21076784]
[1772046661569,3.2483284,2067.3,2066.5,0.001]
[1772046662968,3.2483284,2067.1,2066.5,0.001]
[1772046663171,3.2483284,2066.5,2065.6,0.84682982]
[1772046663380,3.2483284,2067.2,2066.3,3.18982014]
[1772046663680,3.2483284,2067.7,2067.1,2.34299032]
[1772046663881,3.2483284,2068.1,2067.2,3.35161276]
[1772046664653,8.08313921,2068.4,2067.7,2.34299032]
[1772046665059,1.2106637,2068.5,2067.7,3.55204971]
[1772046665060,0.002,2068.5,2067.7,3.55204971]
[1772046665268,1.21065173,2068.5,2067.7,3.55204971]
[1772046665655,1.21064178,2068.5,2068.0,2.34299032]
[1772046665885,1.21064178,2068.5,2067.7,1.20905939]
[1772046666064,1.21064178,2068.5,2067.4,3.26424721]
[1772046666065,3.2483284,2068.4,2067.4,3.26424721]
[1772046666388,3.2483284,2068.4,2067.5,2.34299032]
[1772046666681,3.2483284,2068.4,2067.5,5.69460308]
[1772046667664,0.002,2068.5,2067.8,2.34299032]
[1772046667987,3.2503284,2068.5,2067.5,6.90374655]
[1772046668188,3.2503284,2068.5,2067.5,6.90379157]
[1772046668389,3.2503284,2068.5,2067.5,4.56080125]
[1772046668865,3.2503284,2068.5,2067.1,1.20942383]
[1772046669064,3.2483284,2068.2,2066.9,3.26249954]
[1772046669776,3.2483284,2068.0,2066.9,3.26249954]
[1772046670367,3.2483284,2068.0,2066.9,3.26169954]
[1772046670672,3.2483284,2067.9,2066.9,3.26172872]
[1772046671260,3.2483284,2067.9,2067.0,2.34299032]
[1772046671778,1.20901441,2067.8,2067.0,3.5524643]
[1772046672386,1.20901441,2067.8,2067.0,2.34299032]
[1772046672580,3.2483284,2067.7,2066.9,2.0522]
[1772046672886,1.20901441,2067.8,2066.9,3.26173794]
[1772046673090,1.20901441,2067.8,2067.0,2.34299032]
[1772046673764,4.83605764,2067.9,2067.1,1.20942383]
[1772046674106,4.83605764,2067.9,2067.0,3.55242669]
[1772046675167,4.45727023,2068.0,2067.3,2.34299032]
[1772046675374,4.45727023,2068.0,2067.1,5.69460308]
[1772046675769,4.45727023,2068.0,2067.2,1.20936532]
[1772046676372,4.45727023,2068.0,2067.2,3.55235564]
[1772046676795,1.20882844,2068.2,2067.5,2.34299032]
[1772046676963,1.20882844,2068.2,2067.4,2.34299032]
[1772046677166,4.45709285,2068.3,2067.4,5.69460308]
[1772046677399,4.45709285,2068.3,2067.5,2.34299032]
[1772046677591,4.45706193,2068.3,2067.5,4.39299032]
[1772046678102,4.45706193,2068.3,2067.5,3.25917474]
[1772046678870,3.2483284,2068.2,2067.1,2.34299032]
[1772046679191,3.2483284,2068.2,2067.2,3.35161276]
[1772046679367,0.002,2068.0,2067.2,3.35161276]
[1772046680195,0.002,2068.0,2067.3,1.20930682]
[1772046680566,0.002,2068.0,2067.3,4.56091958]
[1772046680766,0.002,2068.0,2067.3,6.9039099]
[1772046681192,3.2503284,2068.0,2067.2,1.20932815]
[1772046682393,4.45927828,2068.0,2067.2,1.20932815]
[1772046685095,4.45927828,2068.0,2067.4,2.34299032]
[1772046685096,3.2503284,2068.0,2067.4,2.34299032]
[1772046685296,0.002,2068.0,2067.4,2.34299032]
[1772046685597,0.002,2068.0,2067.5,2.048]
[1772046685768,3.20683357,2067.9,2067.0,4.83786067]
[1772046685971,3.20683357,2067.8,2066.7,0.001]
[1772046686183,1.21092022,2068.0,2066.7,1.21063677]
[1772046686184,3.20683357,2067.6,2066.7,1.21063677]
[1772046686795,3.20683357,2067.6,2066.7,0.001]
[1772046687207,3.20683357,2067.4,2066.7,0.001]
[1772046689194,1.20930682,2067.3,2066.7,0.001]
[1772046689419,4.5740207,2067.3,2066.7,0.001]
[1772046690070,3.36471388,2067.3,2066.7,0.001]
[1772046691184,4.57406286,2067.3,2066.7,0.001]
[1772046691926,3.36471388,2067.2,2066.7,0.001]
[1772046692091,3.36471388,2067.2,2066.1,2.045]
[1772046692296,3.36471388,2067.1,2066.1,2.045]
[1772046693185,3.36471388,2066.9,2066.1,2.045]
[1772046693782,3.36471388,2066.9,2066.6,0.001]
[1772046693986,3.36471388,2066.9,2065.7,1.2102435]
[1772046694182,3.36471388,2066.8,2065.6,3.1580329]
[1772046694500,3.36471388,2066.5,2065.5,2.044]
[1772046694697,3.36471388,2066.2,2065.1,2.043]
[1772046694886,3.36471388,2066.2,2065.3,2.34299032]
[1772046695302,3.36471388,2066.2,2065.5,2.34299032]
[1772046695502,1.2098669,2066.4,2065.5,2.34299032]
[1772046695722,3.36471388,2066.3,2065.4,1.21041928]
[1772046696733,3.36471388,2066.3,2065.5,2.34299032]
[1772046696935,3.36471388,2066.3,2065.4,4.58489033]
[1772046697110,3.36471388,2066.5,2065.7,2.34299032]
[1772046697450,3.36471388,2066.3,2065.3,1.21047789]
[1772046697633,3.36471388,2066.2,2065.1,2.043]
[1772046698107,3.36471388,2066.2,2065.1,3.25358978]
[1772046699432,3.36471388,2066.0,2065.1,3.25358978]
[1772046700103,3.36471388,2066.0,2065.1,3.25359496]
[1772046700744,1.20993581,2066.3,2065.5,2.34299032]
[1772046700906,1.20993581,2066.3,2064.9,0.1644537]
[1772046700907,3.36471388,2066.2,2064.9,0.1644537]
[1772046701114,1.20993581,2066.3,2063.7,2.042]
[1772046701115,2.34299032,2065.2,2063.7,2.042]
[1772046701412,0.2522559,2065.0,2064.4,2.34299032]
[1772046701838,1.21035877,2065.6,2064.7,2.34299032]
[1772046702138,3.36471388,2065.5,2064.6,2.29299032]
[1772046702831,3.36471388,2065.5,2064.4,4.38399032]
[1772046703217,3.36471388,2065.5,2064.4,2.041]
[1772046703419,3.36471388,2065.3,2064.4,2.041]
[1772046703943,3.36471388,2065.3,2064.0,3.37447105]
[1772046704240,2.34299032,2065.2,2063.9,3.25129132]
[1772046704416,3.36471388,2065.1,2063.9,3.25129132]
[1772046705348,3.36471388,2064.9,2063.9,3.25129132]
[1772046706428,3.36471388,2064.9,2064.6,0.001]
[1772046706740,3.36471388,2064.7,2063.3,1.21165123]
[1772046706914,3.36471388,2064.7,2063.4,2.34299032]
[1772046707114,3.36471388,2064.7,2062.5,4.84827146]
[1772046707317,3.36471388,2064.7,2062.0,11.56981639]
[1772046707318,3.36471388,2063.5,2062.0,4.58688618]
[1772046707517,4.84473039,2064.1,2062.0,4.58688618]
[1772046707518,5.96251468,2063.8,2062.5,3.37447105]
[1772046707859,3.36471388,2064.5,2063.0,3.32447105]
[1772046708148,3.36471388,2064.5,2063.1,5.41547105]
[1772046708317,3.36471388,2064.5,2063.2,3.37447105]
[1772046708516,2.5978008,2064.9,2063.2,3.37447105]
[1772046708517,5.96251468,2064.9,2063.2,3.37447105]
[1772046708816,7.17327593,2064.9,2063.9,2.34299032]
[1772046709024,7.17327593,2064.9,2064.0,1.351]
[1772046709813,3.80856205,2064.9,2064.0,1.351]
[1772046710114,3.80856205,2064.9,2064.1,2.34299032]
[1772046710115,1.21076125,2064.9,2064.1,2.34299032]
[1772046710316,1.21076125,2064.9,2064.1,1.84349032]
[1772046710534,1.21059512,2065.1,2064.1,2.34299032]
[1772046710727,4.575309,2065.1,2064.1,2.34299032]
[1772046710934,3.36471388,2065.0,2064.0,1.3502]
[1772046711449,1.21071238,2064.9,2064.0,1.3502]
[1772046711650,3.36471388,2064.8,2064.0,1.3502]
[1772046712225,3.36471388,2064.8,2063.6,2.043]
[1772046712426,3.36471388,2064.5,2063.4,2.043]
[1772046713752,1.21100561,2064.4,2063.4,3.25454658]
[1772046714046,1.21100561,2064.4,2063.4,3.25458864]
[1772046714354,4.57571949,2064.4,2063.4,3.25458864]
[1772046714548,1.21100561,2064.4,2063.4,3.25458864]
[1772046715062,1.21100561,2064.4,2063.6,2.34299032]
[1772046715754,1.2108883,2064.6,2063.7,1.21141638]
[1772046715928,1.2108883,2064.6,2063.6,3.55441971]
[1772046716125,4.44879298,2064.6,2063.6,3.55441971]
[1772046716534,3.23790468,2064.5,2063.5,1.2115338]
[1772046717050,5.580895,2064.5,2063.2,4.84671749]
[1772046717347,3.23790468,2064.5,2063.5,2.34299032]
[1772046717521,3.23790468,2064.5,2063.4,5.76495732]
[1772046717849,1.21100561,2064.4,2063.4,5.76495732]
[1772046718148,3.23790468,2064.3,2063.2,5.59365968]
[1772046718748,3.23790468,2064.3,2063.4,2.34299032]
[1772046719129,1.21100561,2064.4,2063.4,2.34299032]
[1772046719830,4.84402247,2064.5,2063.6,2.34299032]
[1772046720461,2.372,2064.8,2064.0,2.34299032]
[1772046720656,2.372,2064.8,2063.9,2.038]
[1772046720657,3.23790468,2064.6,2063.9,2.038]
[1772046721257,0.002,2064.5,2063.9,2.038]
[1772046721765,0.002,2064.5,2063.9,5.32696332]
[1772046722068,3.23790468,2065.0,2063.9,6.53823083]
[1772046722069,4.84289092,2064.9,2063.9,6.53823083]
[1772046722555,3.23790468,2065.2,2064.2,3.421967]
[1772046722754,3.23790468,2065.2,2064.1,9.28276936]
[1772046723461,1.21051468,2065.3,2064.4,6.71093032]
[1772046723763,1.21051468,2065.3,2064.4,6.41193032]
[1772046723937,4.84191158,2065.5,2064.7,3.28896332]
[1772046723938,8.07981626,2065.5,2064.7,3.28896332]
[1772046724649,8.07981626,2065.5,2064.5,6.67191396]
[1772046724650,8.07818849,2066.0,2064.9,3.28896332]
[1772046724962,8.07818849,2066.0,2064.7,3.421967]
[1772046725336,8.07818849,2066.0,2064.9,3.28896332]
[1772046726038,3.23790468,2065.9,2064.6,4.6328553]
[1772046726237,3.23790468,2065.9,2064.8,6.71093032]
[1772046728074,1.21018491,2065.8,2065.1,3.28896332]
[1772046728234,1.21018491,2065.8,2065.2,2.039]
[1772046730270,4.84052223,2065.9,2065.3,1.21047789]
[1772046730471,4.44798121,2066.0,2065.3,1.21047789]
[1772046730674,1.21007653,2066.0,2065.3,4.63244489]
[1772046730847,3.23790468,2066.3,2065.3,4.63244489]
[1772046731160,1.20983352,2066.4,2065.4,3.421967]
[1772046731338,1.20983352,2066.4,2065.5,3.28896332]
[1772046731667,3.23790468,2066.0,2065.0,2.036]
[1772046731876,3.23790468,2066.0,2065.0,8.74693032]
[1772046732253,1.20995063,2066.2,2065.3,4.49938764]
[1772046732563,1.20995063,2066.2,2065.6,3.28896332]
[1772046732878,1.20995063,2066.2,2065.7,2.035]
[1772046733503,4.44767966,2066.5,2065.7,2.035]
[1772046733649,4.44767966,2066.5,2065.8,3.28896332]
[1772046734601,1.20977498,2066.5,2065.9,2.034]
[1772046734762,6.526868,2066.4,2065.5,2.033]
[1772046734956,3.23790468,2066.3,2065.1,2.034]
[1772046735296,3.23790468,2066.3,2065.1,2.02715]
[1772046735793,3.23790468,2066.3,2065.2,3.28896332]
[1772046736150,3.23790468,2065.9,2064.5,3.421967]
[1772046736458,1.21018491,2065.8,2065.2,3.28896332]
[1772046736660,1.21018491,2065.8,2065.3,2.033]
[1772046737002,3.23790468,2066.0,2065.3,2.033]
[1772046737661,3.23990468,2066.0,2065.3,2.033]
[1772046738478,1.21211209,2066.0,2065.3,3.2434762]
[1772046738797,1.21211209,2066.0,2065.3,2.033]
[1772046740080,3.23790468,2066.6,2065.5,3.28896332]
[1772046740470,4.44767966,2066.5,2065.5,1.21035964]
[1772046740783,4.44767966,2066.5,2065.4,4.63233879]
[1772046741767,4.44767966,2066.5,2065.4,3.421967]
[1772046741961,3.23790468,2066.4,2065.4,4.63238612]
[1772046742783,1.20989207,2066.3,2065.4,4.63238612]
[1772046744586,1.20989207,2066.3,2065.5,3.421967]
[1772046745080,4.44767966,2066.6,2065.6,1.21030209]
[1772046745587,4.44767966,2066.6,2066.0,3.28896332]
[1772046745786,1.20977498,2066.6,2066.1,2.025]
[1772046746168,3.04866566,2066.9,2066.1,2.025]
[1772046746169,1.20957257,2066.9,2066.3,3.28896332]
[1772046746569,1.20957257,2066.9,2066.1,5.3493829]
[1772046746874,1.20957257,2066.9,2066.2,3.3243829]
[1772046747388,0.002,2067.2,2066.5,3.3243829]
[1772046747588,0.002,2067.2,2066.6,2.025]
[1772046747775,0.002,2067.2,2066.6,5.3493829]
[1772046747978,1.21136897,2067.2,2066.6,5.3493829]
[1772046748172,1.21136897,2067.2,2066.7,2.026]
[1772046748767,3.04866566,2067.9,2066.8,3.3243829]
[1772046748974,1.20901441,2067.8,2067.2,3.28896332]
[1772046749168,4.25956539,2068.0,2067.3,2.025]
[1772046750659,1.21092374,2068.0,2067.3,2.025]
[1772046750892,1.21092374,2068.0,2067.3,3.23430116]
[1772046751063,0.002,2068.0,2067.4,3.28896332]
[1772046751389,3.15453311,2068.0,2067.0,6.38626356]
[1772046751694,3.15453311,2068.0,2067.1,2.026]
[1772046751894,3.15453311,2068.0,2067.1,5.12330024]
[1772046752207,0.002,2068.0,2067.1,5.12330024]
[1772046752364,0.002,2068.0,2067.1,2.026]
[1772046752726,0.002,2068.0,2067.2,3.09730024]
[1772046753580,0.002,2068.0,2067.3,4.30660706]
[1772046754005,0.002,2068.0,2067.4,2.025]
[1772046754006,3.15453311,2068.0,2067.4,2.025]
[1772046754212,3.15453311,2068.0,2066.9,4.83803666]
[1772046754213,3.15453311,2068.0,2067.2,2.025]
[1772046754703,3.15253311,2067.8,2067.2,2.025]
[1772046754909,0.002,2067.5,2067.2,2.025]
[1772046755065,0.002,2067.5,2067.0,2.024]
[1772046755266,0.002,2067.5,2067.0,2.0231]
[1772046755667,3.15253311,2067.4,2066.6,2.024]
[1772046756920,0.002,2067.5,2066.6,5.12130024]
[1772046757597,3.15453311,2067.5,2066.6,6.33096712]
[1772046758523,0.002,2067.5,2066.7,3.09730024]
[1772046759590,1.21118984,2067.5,2066.7,3.09730024]
[1772046759909,1.21118984,2067.5,2066.7,4.30694268]
[1772046760090,1.21118984,2067.5,2066.7,3.09730024]
[1772046760280,1.21118984,2067.5,2066.7,3.09620024]
[1772046760485,3.15253311,2067.4,2066.1,8.3916469]
[1772046760687,3.15253311,2067.2,2066.2,2.02]
[1772046761991,3.15253311,2067.0,2066.2,2.02]
[1772046763935,1.20954085,2066.9,2066.2,3.22994777]
[1772046764096,1.20954085,2066.9,2066.2,2.02]
[1772046764422,1.20954085,2066.9,2066.2,3.22993897]
[1772046764607,4.36200242,2067.1,2066.2,3.22993897]
[1772046764807,4.36200242,2067.1,2066.2,2.02]
[1772046765313,4.36200242,2067.1,2066.2,2.0188]
[1772046765526,4.36200242,2067.1,2066.2,3.22874252]
[1772046767490,4.36200242,2067.1,2066.4,0.001]
[1772046768228,3.15253311,2067.0,2066.4,0.001]
[1772046768716,1.20954085,2066.9,2066.4,0.001]
[1772046770425,4.83759154,2067.2,2066.4,3.09830024]
[1772046770619,7.99012465,2067.2,2066.4,3.09830024]
[1772046770923,4.36189843,2067.2,2066.4,4.30813077]
[1772046771137,1.20936532,2067.2,2066.5,3.09730024]
[1772046772095,4.36189843,2067.2,2066.6,2.013]
[1772046772713,4.36189843,2067.2,2066.4,0.001]
[1772046772915,4.36189843,2067.2,2066.5,2.012]
[1772046773223,3.15253311,2067.1,2066.5,2.012]
[1772046773794,3.15253311,2067.1,2066.4,0.001]
[1772046774909,3.15253311,2066.9,2066.4,0.001]
[1772046775393,4.36189843,2067.2,2066.5,6.38626356]
[1772046775596,3.15253311,2067.1,2066.4,0.001]
[1772046776527,3.15253311,2067.1,2066.1,0.001]
[1772046776528,3.05570854,2066.9,2066.1,0.001]
[1772046776821,3.05570854,2066.7,2066.1,0.001]
[1772046777123,3.05570854,2066.7,2065.5,3.22035856]
[1772046777299,3.05570854,2066.7,2065.5,3.22034896]
[1772046777498,3.05570854,2066.7,2065.6,3.21864449]
[1772046778001,3.05570854,2066.7,2065.8,3.28896332]
[1772046778200,3.05570854,2066.7,2065.9,3.21864449]
[1772046779025,1.20971644,2066.6,2066.0,1.21006776]
[1772046779334,1.20971644,2066.6,2066.1,2.009]
[1772046779548,3.05570854,2067.0,2066.2,3.21864449]
[1772046779831,3.05570854,2067.0,2066.3,2.009]
[1772046780209,3.05570854,2067.0,2066.1,2.009]
[1772046781610,3.05570854,2066.7,2065.4,4.01028334]
[1772046781923,3.05570854,2066.7,2065.5,3.21864449]
[1772046782236,3.05570854,2066.7,2065.9,0.001]
[1772046783725,3.05570854,2066.5,2065.9,0.001]
[1772046784109,1.20971644,2066.6,2065.9,2.34577829]
[1772046785867,3.05570854,2066.6,2065.9,0.001]
[1772046787836,1.20977498,2066.5,2065.9,0.001]
[1772046788604,3.05570854,2066.7,2066.0,2.34477829]
[1772046788813,3.05570854,2066.7,2065.9,0.001]
[1772046789925,3.05570854,2066.5,2065.9,0.001]
[1772046791837,4.26552395,2066.5,2065.9,0.001]
[1772046792532,3.05570854,2066.4,2065.9,0.001]
[1772046793813,1.20989207,2066.3,2065.9,0.001]
[1772046795835,3.05570854,2066.3,2065.9,0.001]
[1772046796230,3.05570854,2066.3,2066.1,0.001]
[1772046798514,4.26565917,2066.2,2065.9,0.001]
[1772046800426,1.20992601,2066.3,2065.9,0.001]
[1772046803138,4.83944667,2066.4,2065.9,3.21964449]
[1772046803342,1.2117863,2066.5,2066.1,3.21864449]
[1772046803545,0.002,2066.5,2066.1,3.21864449]
[1772046803713,1.21177505,2066.5,2066.1,3.21864449]
[1772046804132,0.002,2066.5,2066.1,3.21864449]
[1772046804587,3.05570854,2066.4,2065.9,0.001]
[1772046805048,1.20989207,2066.3,2065.9,0.001]
[1772046806562,4.2442896,2066.3,2065.9,0.001]
[1772046807335,6.04944713,2066.2,2065.9,0.001]
[1772046807723,1.21000046,2066.2,2065.9,0.001]
[1772046808664,4.83944667,2066.1,2065.9,0.001]
[1772046808981,1.21000046,2066.2,2065.9,0.001]
[1772046809153,4.83944667,2066.1,2065.9,0.001]
[1772046809568,6.0494582,2066.1,2065.9,0.001]
[1772046810095,1.20983352,2066.4,2066.1,0.001]
[1772046810259,6.04928019,2066.4,2066.1,0.001]
[1772046810455,2.94471904,2066.3,2066.1,0.001]
[1772046810764,2.94671904,2066.3,2066.1,0.001]
[1772046811469,1.20995063,2066.2,2066.1,0.001]
[1772046812038,4.83944667,2066.2,2066.1,0.001]
[1772046813382,1.21193468,2066.3,2066.1,0.001]